lending/lending_fUSD_20250131
["ID","MTS","AMOUNT","RATE_DAILY","PERIOD"]
[351070626,1738324246567,-3889.3,0.00016438,2]
[351070628,1738324246577,-500.0,0.00016438,2]
[351070629,1738324246586,-528.68,0.00016438,2]
[351070630,1738324246595,-1603.26,0.00016438,2]
[351070631,1738324246604,-3037.65,0.00016438,2]
[351070632,1738324246614,-2291.82,0.00016438,2]
[351070633,1738324246623,-2335.67,0.00016438,2]
[351070634,1738324246632,-500.0,0.00016438,2]
[351070635,1738324246641,-500.0,0.00016438,2]
[351070636,1738324246650,-1077.26,0.00016438,2]
[351070637,1738324246659,-2970.63,0.00016438,2]
[351070638,1738324246668,-500.0,0.00016438,2]
[351070639,1738324246679,-500.0,0.00016438,2]
[351070640,1738324246688,-500.0,0.00016438,2]
[351070641,1738324246698,-510.40093472,0.00016438,2]
[351070642,1738324246707,-611.16,0.00016438,2]
[351070643,1738324246716,-833.14,0.00016438,2]
[351070644,1738324246726,-500.0,0.00016438,2]
[351070645,1738324246736,-500.0,0.00016438,2]
[351070646,1738324246746,-1305.13,0.00016438,2]
[351070647,1738324246755,-500.0,0.00016438,2]
[351070648,1738324246763,-2952.79,0.00016438,2]
[351070649,1738324246772,-1857.79,0.00016438,2]
[351070650,1738324246781,-500.0,0.00016438,2]
[351070651,1738324246789,-500.0,0.00016438,2]
[351070652,1738324246798,-2508.56,0.00016438,2]
[351070653,1738324246807,-571.37,0.00016438,2]
[351070654,1738324246816,-500.0,0.00016438,2]
[351070655,1738324246824,-500.0,0.00016438,2]
[351070656,1738324246833,-500.0,0.00016438,2]
[351070657,1738324246843,-1709.43,0.00016438,2]
[351070658,1738324246851,-2131.57,0.00016438,2]
[351070659,1738324246860,-1359.58,0.00016438,2]
[351070660,1738324246869,-500.0,0.00016438,2]
[351070661,1738324246878,-7600.5,0.00016438,2]
[351070662,1738324246887,-2358.13,0.00016438,2]
[351070663,1738324246895,-505.06132427,0.00016438,2]
[351070664,1738324246904,-500.0,0.00016438,2]
[351070665,1738324246913,-500.0,0.00016438,2]
[351070666,1738324246922,-6466.54,0.00016438,2]
[351070667,1738324246932,-4392.29,0.00016438,2]
[351070668,1738324246941,-3157.78,0.00016438,2]
[351070669,1738324246951,-500.0,0.00016438,2]
[351070670,1738324246960,-3526.47,0.00016438,2]
[351070671,1738324246971,-1166.07,0.00016438,2]
[351070672,1738324246982,-504.62025517,0.00016438,2]
[351070673,1738324246991,-1381.21,0.00016438,2]
[351070674,1738324247001,-502.7,0.00016438,2]
[351070675,1738324247010,-4490.0,0.00016438,2]
[351070676,1738324247020,-500.0,0.00016438,2]
[351070677,1738324247029,-3967.33,0.00016438,2]
[351070678,1738324247039,-2412.99,0.00016438,2]
[351070679,1738324247050,-500.0,0.00016438,2]
[351070680,1738324247059,-500.0,0.00016438,2]
[351070681,1738324247068,-4440.42,0.00016438,2]
[351070682,1738324247078,-527.17423844,0.00016438,2]
[351070683,1738324247088,-1626.43,0.00016438,2]
[351070684,1738324247097,-734.46,0.00016438,2]
[351070685,1738324247107,-500.0,0.00016438,2]
[351070686,1738324247116,-1323.77,0.00016438,2]
[351070687,1738324247125,-500.0,0.00016438,2]
[351070688,1738324247135,-2783.46,0.00016438,2]
[351070689,1738324247144,-6910.43,0.00016438,2]
[351070690,1738324247154,-500.0,0.00016438,2]
[351070691,1738324247164,-500.0,0.00016438,2]
[351070692,1738324247174,-500.0,0.00016438,2]
[351070693,1738324247185,-2558.37,0.00016438,2]
[351070694,1738324247195,-500.0,0.00016438,2]
[351070695,1738324247204,-500.0,0.00016438,2]
[351070696,1738324247213,-500.0,0.00016438,2]
[351070697,1738324247223,-3244.93,0.00016438,2]
[351070698,1738324247232,-2061.66,0.00016438,2]
[351070699,1738324247242,-500.0,0.00016438,2]
[351070700,1738324247252,-509.96619969,0.00016438,2]
[351070701,1738324247262,-1646.19,0.00016438,2]
[351070702,1738324247271,-1490.44,0.00016438,2]
[351070703,1738324247280,-601.89,0.00016438,2]
[351070704,1738324247289,-500.0,0.00016438,2]
[351070705,1738324247299,-500.0,0.00016438,2]
[351070706,1738324247310,-213.82442576,0.00016438,2]
[351070707,1738324247320,-1606.89,0.00016438,2]
[351070708,1738324247331,-1840.26,0.00016438,2]
[351070709,1738324247340,-580.84,0.00016438,2]
[351070710,1738324247349,-500.0,0.00016438,2]
[351070711,1738324247358,-2593.65,0.00016438,2]
[351070712,1738324247367,-5319.28,0.00016438,2]
[351070713,1738324247377,-1571.41,0.00016438,2]
[351070714,1738324247386,-500.0,0.00016438,2]
[351070715,1738324247395,-500.0,0.00016438,2]
[351070716,1738324247404,-500.0,0.00016438,2]
[351070717,1738324247413,-500.0,0.00016438,2]
[351070718,1738324247424,-500.0,0.00016438,2]
[351070719,1738324247436,-500.0,0.00016438,2]
[351070720,1738324247447,-1321.81,0.00016438,2]
[351070721,1738324247458,-673.9,0.00016438,2]
[351070722,1738324247468,-500.0,0.00016438,2]
[351070723,1738324247478,-500.0,0.00016438,2]
[351070724,1738324247487,-500.0,0.00016438,2]
[351070725,1738324247497,-7695.6,0.00016438,2]
[351070726,1738324247506,-531.37,0.00016438,2]
[351070727,1738324247515,-1931.96,0.00016438,2]
[351070728,1738324247526,-907.61,0.00016438,2]
[351070729,1738324247535,-500.0,0.00016438,2]
[351070730,1738324247544,-12891.46,0.00016438,2]
[351070731,1738324247553,-1128.39,0.00016438,2]
[351070732,1738324247563,-500.0,0.00016438,2]
[351070733,1738324247571,-1099.89,0.00016438,2]
[351070734,1738324247581,-2100.31,0.00016438,2]
[351070735,1738324247595,-4096.93,0.00016438,2]
[351070736,1738324247604,-500.0,0.00016438,2]
[351070737,1738324247613,-534.18,0.00016438,2]
[351070738,1738324247623,-1110.8,0.00016438,2]
[351070739,1738324247632,-500.0,0.00016438,2]
[351070740,1738324247642,-500.0,0.00016438,2]
[351070741,1738324247651,-500.0,0.00016438,2]
[351070742,1738324247660,-538.53,0.00016438,2]
[351070743,1738324247670,-2207.75,0.00016438,2]
[351070744,1738324247682,-638.79,0.00016438,2]
[351070745,1738324247691,-1651.63,0.00016438,2]
[351070746,1738324247701,-500.0,0.00016438,2]
[351070747,1738324247710,-2469.67,0.00016438,2]
[351070748,1738324247720,-878.03,0.00016438,2]
[351070749,1738324247730,-152.02,0.00016438,2]
[351070750,1738324247739,-11711.6757146,0.00016445,2]
[351070751,1738324247747,-178.30890936,0.00016475,2]
[351070752,1738324247757,-174.26246121,0.00016475,2]
[351070753,1738324247766,-1740.43,0.00016479,2]
[351070754,1738324247775,-13764.12503026,0.00016512,2]
[351070755,1738324247784,-1000.0,0.00016533,2]
[351070756,1738324247793,-11711.6757146,0.00016551,2]
[351070757,1738324247802,-547.86,0.00016574,2]
[351070758,1738324247811,-547.86,0.00016574,2]
[351070759,1738324247819,-547.86,0.00016574,2]
[351070760,1738324247829,-235.39818326,0.00016575,2]
[351070761,1738324247838,-500.0,0.00016575,2]
[351070762,1738324247847,-408.78781301,0.00016575,2]
[351070763,1738324247856,-500.0,0.00016575,2]
[351070764,1738324247865,-500.0,0.00016575,2]
[351070765,1738324247874,-500.0,0.00016575,2]
[351070766,1738324247884,-500.0,0.00016575,2]
[351070767,1738324247893,-1061.06,0.00016575,2]
[351070768,1738324247905,-500.0,0.00016575,2]
[351070769,1738324247914,-667.17,0.00016575,2]
[351070770,1738324247924,-500.0,0.00016575,2]
[351070771,1738324247937,-440.47187716,0.00016575,2]
[351070772,1738324247946,-500.0,0.00016575,2]
[351070773,1738324247955,-500.0,0.00016575,2]
[351070774,1738324247964,-500.0,0.00016575,2]
[351070775,1738324247973,-500.0,0.00016575,2]
[351070776,1738324247983,-2074.409289,0.00016575,2]
[351070777,1738324247992,-820.59,0.00016575,2]
[351070778,1738324248001,-279.49491131,0.00016575,2]
[351070779,1738324248010,-500.0,0.00016575,2]
[351070780,1738324248019,-500.0,0.00016575,2]
[351070781,1738324248028,-500.0,0.00016575,2]
[351070782,1738324248038,-502.4242808,0.00016575,2]
[351070783,1738324248047,-759.88,0.00016575,2]
[351070784,1738324248056,-500.0,0.00016575,2]
[351070785,1738324248066,-500.0,0.00016575,2]
[351070786,1738324248075,-1436.587895,0.00016575,2]
[351070787,1738324248084,-500.0,0.00016575,2]
[351070788,1738324248094,-500.0,0.00016575,2]
[351070789,1738324248103,-500.0,0.00016575,2]
[351070790,1738324248112,-500.0,0.00016575,2]
[351070791,1738324248121,-500.0,0.00016575,2]
[351070792,1738324248130,-500.0,0.00016575,2]
[351070793,1738324248140,-386.6463597,0.00016575,2]
[351070794,1738324248149,-500.0,0.00016575,2]
[351070795,1738324248159,-617.56,0.00016575,2]
[351070796,1738324248168,-500.0,0.00016575,2]
[351070797,1738324248181,-500.0,0.00016575,2]
[351070798,1738324248191,-500.0,0.00016575,2]
[351070799,1738324248202,-500.0,0.00016575,2]
[351070800,1738324248212,-500.0,0.00016575,2]
[351070801,1738324248221,-500.0,0.00016575,2]
[351070802,1738324248232,-500.0,0.00016575,2]
[351070803,1738324248242,-500.0,0.00016575,2]
[351070804,1738324248251,-500.0,0.00016575,2]
[351070805,1738324248261,-500.0,0.00016575,2]
[351070806,1738324248272,-500.0,0.00016575,2]
[351070807,1738324248283,-500.0,0.00016575,2]
[351070808,1738324248293,-500.0,0.00016575,2]
[351070809,1738324248303,-500.0,0.00016575,2]
[351070810,1738324248313,-500.0,0.00016575,2]
[351070811,1738324248322,-500.0,0.00016575,2]
[351070812,1738324248333,-509.1,0.00016575,2]
[351070813,1738324248344,-1234.71,0.00016575,2]
[351070814,1738324248354,-500.0,0.00016575,2]
[351070815,1738324248364,-500.0,0.00016575,2]
[351070816,1738324248374,-536.29,0.00016575,2]
[351070817,1738324248384,-1312.75,0.00016575,2]
[351070818,1738324248394,-500.0,0.00016575,2]
[351070819,1738324248404,-448.42409108,0.00016575,2]
[351070820,1738324248414,-500.0,0.00016575,2]
[351070821,1738324248423,-500.0,0.00016575,2]
[351070822,1738324248439,-500.0,0.00016575,2]
[351070823,1738324248452,-1015.25,0.00016575,2]
[351070824,1738324248461,-725.65,0.00016575,2]
[351070825,1738324248472,-540.31630211,0.00016575,2]
[351070826,1738324248482,-500.0,0.00016575,2]
[351070827,1738324248494,-500.0,0.00016575,2]
[351070828,1738324248503,-500.0,0.00016575,2]
[351070829,1738324248513,-721.66,0.00016575,2]
[351070830,1738324248524,-500.0,0.00016575,2]
[351070831,1738324248534,-500.0,0.00016575,2]
[351070832,1738324248544,-500.0,0.00016575,2]
[351070833,1738324248553,-693.56,0.00016575,2]
[351070834,1738324248562,-563.28,0.00016575,2]
[351070835,1738324248571,-500.0,0.00016575,2]
[351070836,1738324248581,-1762.66,0.00016575,2]
[351070837,1738324248589,-500.0,0.00016575,2]
[351070838,1738324248598,-500.0,0.00016575,2]
[351070839,1738324248608,-500.0,0.00016575,2]
[351070840,1738324248617,-500.0,0.00016575,2]
[351070841,1738324248626,-500.0,0.00016575,2]
[351070842,1738324248636,-580.28,0.00016575,2]
[351070843,1738324248645,-1817.38,0.00016575,2]
[351070844,1738324248654,-742.3,0.00016575,2]
[351070845,1738324248663,-500.0,0.00016575,2]
[351070846,1738324248673,-500.0,0.00016575,2]
[351070847,1738324248686,-500.0,0.00016575,2]
[351070848,1738324248695,-500.0,0.00016575,2]
[351070849,1738324248704,-500.0,0.00016575,2]
[351070850,1738324248713,-1911.73,0.00016575,2]
[351070851,1738324248723,-500.0,0.00016575,2]
[351070852,1738324248732,-500.0,0.00016575,2]
[351070853,1738324248741,-1483.82,0.00016575,2]
[351070854,1738324248750,-500.0,0.00016575,2]
[351070855,1738324248759,-500.0,0.00016575,2]
[351070856,1738324248768,-500.0,0.00016575,2]
[351070857,1738324248777,-500.0,0.00016575,2]
[351070858,1738324248787,-500.0,0.00016575,2]
[351070859,1738324248796,-607.57888326,0.00016575,2]
[351070860,1738324248805,-292.58032217,0.00016575,2]
[351070861,1738324248823,-207.41967783,0.00016575,2]
[351070862,1738324248833,-755.76,0.00016575,2]
[351070863,1738324248844,-500.0,0.00016575,2]
[351070864,1738324248854,-500.0,0.00016575,2]
[351070865,1738324248863,-1267.56,0.00016575,2]
[351070866,1738324248872,-500.0,0.00016575,2]
[351070867,1738324248881,-493.88519603,0.00016575,2]
[351070868,1738324248890,-500.0,0.00016575,2]
[351070869,1738324248899,-500.0,0.00016575,2]
[351070870,1738324248909,-876.85,0.00016575,2]
[351070871,1738324248918,-500.0,0.00016575,2]
[351070872,1738324248929,-500.0,0.00016575,2]
[351070873,1738324248939,-500.0,0.00016575,2]
[351070874,1738324248948,-631.82,0.00016575,2]
[351070875,1738324248957,-500.0,0.00016575,2]
[351070876,1738324248966,-500.0,0.00016575,2]
[351070877,1738324248976,-500.0,0.00016575,2]
[351070878,1738324248986,-517.84500792,0.00016575,2]
[351070879,1738324248998,-500.0,0.00016575,2]
[351070880,1738324249007,-946.0,0.00016575,2]
[351070881,1738324249017,-500.0,0.00016575,2]
[351070882,1738324249026,-793.42,0.00016575,2]
[351070883,1738324249036,-500.0,0.00016575,2]
[351070884,1738324249046,-1051.17,0.00016575,2]
[351070885,1738324249056,-614.76,0.00016575,2]
[351070886,1738324249065,-500.0,0.00016575,2]
[351070887,1738324249074,-1621.42,0.00016575,2]
[351070888,1738324249083,-500.0,0.00016575,2]
[351070889,1738324249094,-500.0,0.00016575,2]
[351070890,1738324249104,-1050.41,0.00016575,2]
[351070891,1738324249114,-500.0,0.00016575,2]
[351070892,1738324249123,-500.0,0.00016575,2]
[351070893,1738324249133,-571.26,0.00016575,2]
[351070894,1738324249144,-500.0,0.00016575,2]
[351070895,1738324249153,-500.0,0.00016575,2]
[351070896,1738324249163,-1105.7,0.00016575,2]
[351070897,1738324249173,-719.71,0.00016575,2]
[351070898,1738324249185,-500.0,0.00016575,2]
[351070899,1738324249194,-522.61,0.00016575,2]
[351070900,1738324249203,-410.22609652,0.00016575,2]
[351070901,1738324249214,-500.0,0.00016575,2]
[351070902,1738324249224,-500.0,0.00016575,2]
[351070903,1738324249233,-1206.79,0.00016575,2]
[351070904,1738324249243,-500.0,0.00016575,2]
[351070905,1738324249252,-500.0,0.00016575,2]
[351070906,1738324249261,-500.0,0.00016575,2]
[351070907,1738324249270,-775.91,0.00016575,2]
[351070908,1738324249280,-2899.61,0.00016575,2]
[351070909,1738324249289,-272.65983676,0.00016575,2]
[351070910,1738324249302,-845.87016324,0.00016575,2]
[351070911,1738324249311,-503.54722993,0.00016575,2]
[351070912,1738324249320,-503.54079381,0.00016575,2]
[351070913,1738324249329,-602.16,0.00016575,2]
[351070914,1738324249338,-844.5,0.00016575,2]
[351070915,1738324249347,-500.0,0.00016575,2]
[351070916,1738324249356,-500.0,0.00016575,2]
[351070917,1738324249366,-500.0,0.00016575,2]
[351070918,1738324249375,-500.0,0.00016575,2]
[351070919,1738324249385,-500.0,0.00016575,2]
[351070920,1738324249396,-722.66,0.00016575,2]
[351070921,1738324249406,-500.0,0.00016575,2]
[351070922,1738324249418,-500.0,0.00016575,2]
[351070923,1738324249427,-745.68,0.00016575,2]
[351070924,1738324249439,-500.0,0.00016575,2]
[351070925,1738324249448,-844.57,0.00016575,2]
[351070926,1738324249461,-622.82,0.00016575,2]
[351070927,1738324249472,-1809.29,0.00016575,2]
[351070928,1738324249482,-516.35,0.00016575,2]
[351070929,1738324249491,-500.0,0.00016575,2]
[351070930,1738324249501,-504.01181302,0.00016575,2]
[351070931,1738324249513,-420.60818698,0.00016575,2]
[351070932,1738324249524,-1135.67,0.00016575,2]
[351070933,1738324249536,-500.0,0.00016575,2]
[351070934,1738324249545,-1008.93,0.00016575,2]
[351070935,1738324249554,-500.0,0.00016575,2]
[351070936,1738324249564,-500.0,0.00016575,2]
[351070937,1738324249574,-2056.77,0.00016575,2]
[351070938,1738324249583,-1566.7,0.00016575,2]
[351070939,1738324249593,-1749.3,0.00016575,2]
[351070940,1738324249602,-500.0,0.00016575,2]
[351070941,1738324249612,-500.0,0.00016575,2]
[351070942,1738324249621,-1197.8,0.00016575,2]
[351070943,1738324249631,-803.71,0.00016575,2]
[351070944,1738324249642,-920.16,0.00016575,2]
[351070945,1738324249651,-500.0,0.00016575,2]
[351070946,1738324249661,-500.0,0.00016575,2]
[351070947,1738324249670,-500.0,0.00016575,2]
[351070948,1738324249682,-1078.45,0.00016575,2]
[351070949,1738324249691,-500.0,0.00016575,2]
[351070950,1738324249700,-868.3,0.00016575,2]
[351070951,1738324249709,-960.26,0.00016575,2]
[351070952,1738324249719,-1038.11,0.00016575,2]
[351070953,1738324249729,-500.0,0.00016575,2]
[351070954,1738324249740,-512.31,0.00016575,2]
[351070955,1738324249749,-296.03518027,0.00016575,2]
[351070956,1738324249760,-1564.74481973,0.00016575,2]
[351070957,1738324249769,-2229.07,0.00016575,2]
[351070958,1738324249778,-625.75,0.00016575,2]
[351070959,1738324249787,-500.0,0.00016575,2]
[351070960,1738324249796,-500.0,0.00016575,2]
[351070961,1738324249806,-500.0,0.00016575,2]
[351070962,1738324249815,-587.49,0.00016575,2]
[351070963,1738324249827,-514.33358493,0.00016575,2]
[351070964,1738324249837,-500.0,0.00016575,2]
[351070965,1738324249847,-500.0,0.00016575,2]
[351070966,1738324249857,-500.0,0.00016575,2]
[351070967,1738324249866,-500.0,0.00016575,2]
[351070968,1738324249875,-702.08,0.00016575,2]
[351070969,1738324249885,-902.1,0.00016575,2]
[351070970,1738324249895,-500.0,0.00016575,2]
[351070971,1738324249907,-1092.24,0.00016575,2]
[351070972,1738324249916,-500.0,0.00016575,2]
[351070973,1738324249925,-1500.41,0.00016575,2]
[351070974,1738324249937,-1310.52,0.00016575,2]
[351070975,1738324249947,-500.0,0.00016575,2]
[351070976,1738324250046,-551.18,0.00016575,2]
[351070977,1738324250102,-1011.5,0.00016575,2]
[351070978,1738324250112,-916.25,0.00016575,2]
[351070979,1738324250121,-500.0,0.00016575,2]
[351070980,1738324250130,-500.0,0.00016575,2]
[351070981,1738324250139,-1126.48,0.00016575,2]
[351070982,1738324250148,-693.05,0.00016575,2]
[351070983,1738324250158,-500.0,0.00016575,2]
[351070984,1738324250167,-1804.91,0.00016575,2]
[351070985,1738324250176,-891.26,0.00016575,2]
[351070986,1738324250187,-500.0,0.00016575,2]
[351070987,1738324250197,-510.91,0.00016575,2]
[351070988,1738324250206,-837.12,0.00016575,2]
[351070989,1738324250215,-1280.98,0.00016575,2]
[351070990,1738324250224,-810.56,0.00016575,2]
[351070991,1738324250233,-2176.78,0.00016575,2]
[351070992,1738324250243,-1028.63,0.00016575,2]
[351070993,1738324250253,-500.0,0.00016575,2]
[351070994,1738324250262,-706.61684208,0.00016575,2]
[351070995,1738324250285,-596.90315792,0.00016575,2]
[351070996,1738324250294,-500.0,0.00016575,2]
[351070997,1738324250303,-690.75,0.00016575,2]
[351070998,1738324250312,-1122.1,0.00016575,2]
[351070999,1738324250322,-500.0,0.00016575,2]
[351071000,1738324250331,-500.0,0.00016575,2]
[351071001,1738324250340,-829.61,0.00016575,2]
[351071002,1738324250349,-500.0,0.00016575,2]
[351071003,1738324250358,-500.0,0.00016575,2]
[351071004,1738324250368,-1681.91,0.00016575,2]
[351071005,1738324250377,-500.0,0.00016575,2]
[351071006,1738324250387,-1061.98,0.00016575,2]
[351071007,1738324250396,-726.56,0.00016575,2]
[351071008,1738324250405,-518.5,0.00016575,2]
[351071009,1738324250414,-500.0,0.00016575,2]
[351071010,1738324250423,-2007.82,0.00016575,2]
[351071011,1738324250435,-500.0,0.00016575,2]
[351071012,1738324250445,-500.0,0.00016575,2]
[351071013,1738324250456,-799.55,0.00016575,2]
[351071014,1738324250467,-500.0,0.00016575,2]
[351071015,1738324250476,-500.0,0.00016575,2]
[351071016,1738324250485,-511.91,0.00016575,2]
[351071017,1738324250495,-676.71,0.00016575,2]
[351071018,1738324250505,-513.4650702,0.00016575,2]
[351071019,1738324250514,-500.0,0.00016575,2]
[351071020,1738324250523,-918.95,0.00016575,2]
[351071021,1738324250533,-500.0,0.00016575,2]
[351071022,1738324250542,-500.0,0.00016575,2]
[351071023,1738324250551,-500.0,0.00016575,2]
[351071024,1738324250560,-716.74,0.00016575,2]
[351071025,1738324250570,-500.0,0.00016575,2]
[351071026,1738324250579,-599.29,0.00016575,2]
[351071027,1738324250588,-1428.42,0.00016575,2]
[351071028,1738324250596,-500.0,0.00016575,2]
[351071029,1738324250605,-1061.29,0.00016575,2]
[351071030,1738324250615,-500.0,0.00016575,2]
[351071031,1738324250625,-500.0,0.00016575,2]
[351071032,1738324250634,-848.88,0.00016575,2]
[351071033,1738324250643,-500.0,0.00016575,2]
[351071034,1738324250653,-993.25,0.00016575,2]
[351071035,1738324250662,-500.0,0.00016575,2]
[351071036,1738324250672,-529.20955762,0.00016575,2]
[351071037,1738324250683,-884.9,0.00016575,2]
[351071038,1738324250692,-500.0,0.00016575,2]
[351071039,1738324250702,-765.04,0.00016575,2]
[351071040,1738324250711,-1320.85,0.00016575,2]
[351071041,1738324250720,-500.0,0.00016575,2]
[351071042,1738324250730,-500.0,0.00016575,2]
[351071043,1738324250739,-500.0,0.00016575,2]
[351071044,1738324250748,-500.0,0.00016575,2]
[351071045,1738324250758,-593.46,0.00016575,2]
[351071046,1738324250767,-500.0,0.00016575,2]
[351071047,1738324250776,-500.0,0.00016575,2]
[351071048,1738324250785,-500.0,0.00016575,2]
[351071049,1738324250794,-787.26,0.00016575,2]
[351071050,1738324250803,-500.0,0.00016575,2]
[351071051,1738324250812,-500.0,0.00016575,2]
[351071052,1738324250822,-517.63,0.00016575,2]
[351071053,1738324250831,-769.42,0.00016575,2]
[351071054,1738324250840,-500.0,0.00016575,2]
[351071055,1738324250849,-500.0,0.00016575,2]
[351071056,1738324250858,-500.0,0.00016575,2]
[351071057,1738324250867,-1125.66,0.00016575,2]
[351071058,1738324250876,-500.0,0.00016575,2]
[351071059,1738324250886,-500.0,0.00016575,2]
[351071060,1738324250895,-500.0,0.00016575,2]
[351071061,1738324250905,-500.0,0.00016575,2]
[351071062,1738324250914,-500.0,0.00016575,2]
[351071063,1738324250923,-500.0,0.00016575,2]
[351071064,1738324250934,-500.0,0.00016575,2]
[351071065,1738324250943,-1433.15,0.00016575,2]
[351071066,1738324250953,-500.0,0.00016575,2]
[351071067,1738324250962,-500.0,0.00016575,2]
[351071068,1738324250971,-867.02,0.00016575,2]
[351071069,1738324250980,-719.79,0.00016575,2]
[351071070,1738324250990,-1042.52,0.00016575,2]
[351071071,1738324251000,-500.0,0.00016575,2]
[351071072,1738324251010,-500.0,0.00016575,2]
[351071073,1738324251019,-997.01,0.00016575,2]
[351071074,1738324251028,-888.43,0.00016575,2]
[351071075,1738324251037,-500.0,0.00016575,2]
[351071076,1738324251047,-500.0,0.00016575,2]
[351071077,1738324251056,-500.0,0.00016575,2]
[351071078,1738324251065,-500.0,0.00016575,2]
[351071079,1738324251075,-725.69,0.00016575,2]
[351071080,1738324251084,-500.0,0.00016575,2]
[351071081,1738324251093,-500.0,0.00016575,2]
[351071082,1738324251102,-571.64,0.00016575,2]
[351071083,1738324251111,-1332.95,0.00016575,2]
[351071084,1738324251121,-964.72,0.00016575,2]
[351071085,1738324251130,-500.0,0.00016575,2]
[351071086,1738324251140,-701.0,0.00016575,2]
[351071087,1738324251149,-500.0,0.00016575,2]
[351071088,1738324251158,-500.0,0.00016575,2]
[351071089,1738324251167,-186.72709592,0.00016575,2]
[351071090,1738324251177,-501.13690957,0.00016575,2]
[351071091,1738324251187,-765.32,0.00016575,2]
[351071092,1738324251197,-615.17,0.00016575,2]
[351071093,1738324251206,-576.92,0.00016575,2]
[351071094,1738324251216,-535.49,0.00016575,2]
[351071095,1738324251225,-627.28,0.00016575,2]
[351071096,1738324251234,-500.0,0.00016575,2]
[351071097,1738324251244,-500.0,0.00016575,2]
[351071098,1738324251253,-500.0,0.00016575,2]
[351071099,1738324251262,-1202.37,0.00016575,2]
[351071100,1738324251271,-659.44,0.00016575,2]
[351071101,1738324251280,-500.0,0.00016575,2]
[351071102,1738324251290,-711.34,0.00016575,2]
[351071103,1738324251299,-500.0,0.00016575,2]
[351071104,1738324251308,-1980.92,0.00016575,2]
[351071105,1738324251317,-600.25,0.00016575,2]
[351071106,1738324251326,-500.0,0.00016575,2]
[351071107,1738324251335,-500.0,0.00016575,2]
[351071108,1738324251345,-1237.27,0.00016575,2]
[351071109,1738324251354,-1349.79,0.00016575,2]
[351071110,1738324251363,-1154.79,0.00016575,2]
[351071111,1738324251372,-1640.4,0.00016575,2]
[351071112,1738324251382,-500.0,0.00016575,2]
[351071113,1738324251391,-1030.03,0.00016575,2]
[351071114,1738324251400,-500.0,0.00016575,2]
[351071115,1738324251410,-500.0,0.00016575,2]
[351071116,1738324251419,-500.0,0.00016575,2]
[351071117,1738324251428,-500.0,0.00016575,2]
[351071118,1738324251440,-5467.92,0.00016575,2]
[351071119,1738324251454,-500.0,0.00016575,2]
[351071120,1738324251463,-896.49,0.00016575,2]
[351071121,1738324251473,-500.0,0.00016575,2]
[351071122,1738324251482,-500.0,0.00016575,2]
[351071123,1738324251492,-500.0,0.00016575,2]
[351071124,1738324251502,-500.0,0.00016575,2]
[351071125,1738324251512,-1077.54,0.00016575,2]
[351071126,1738324251522,-723.14,0.00016575,2]